{"text_format":"1","workbook":"xlsx","n_sheets":12,"sheets":["Usikkerheter","Tiltak","Oppslag","Hjelp","Info","Skjema","Usikkerhetsliste","Tiltaksliste","Fokusliste","Matrise","Usikkerhetsregnskap","Rapport"],"not_rendered":{"charts":0,"images":53,"macros":1,"external_links":1,"defined_names":22,"comments":8,"pivot_tables":0},"unopened":[],"bounds":{"document_bytes":16777216,"sheet_cells":100000,"rows_first":2000,"rows_last":500,"rows_between":2000,"halvings":0,"cell_chars":16384,"cell_head_chars":4096},"cells_cut":0,"cells_raw":0,"read":"whole","date_system":"1900"}

{"sheet":"Usikkerheter","index":0,"n_rows":2,"n_cols":34,"rows_kept":2,"cut":false,"hidden":true,"merged":[]}
["UID","Usikkerhet","Beskrivelse","Tidskrit","Konsekvenstyper","P","K","Score","Pm","Km","Score m","Kritikalitet","Forventningsverdi","I fokus","Strategi","Usikkerhetsdrivere","Tiltaksmål","Grense for tiltak","Tiltakskost","Tiltakseffekt","Ny kostnad","Tilhører","Ansvarlig","Kons_Kostnad","Kons_Fremdrift","Kons_Kvalitet","Kons_Omdømme","Kons_Sikkerhet","ID_string","Status","Dato importert","Opprinnelig ID","Øk kons","Øk prob"]
[1,"Ny",null,null,null,null,null,null,null,null,null,null,0,false,"Håndtere",null,null,0,0,0,null,null,null,false,false,false,false,false,1,null,null,null,0,0]

{"sheet":"Tiltak","index":1,"n_rows":1,"n_cols":16,"rows_kept":1,"cut":false,"hidden":true,"merged":[]}
["UID","AID","Usikkerhet","Tiltaksmål","Tiltaksgrense","Tiltak","Status","Merkander / utløsende betingelser","Column1","Forv. Kostnad","Forv. Effekt (kr)","Forv. Effekt (kvalitativt)","Frist for igangsettelse","Frist for sluttføring","Ansv-arlig","Sort order"]

{"sheet":"Oppslag","index":2,"n_rows":15,"n_cols":14,"rows_kept":15,"cut":false,"hidden":true,"merged":[]}
["Sannsynlighet","Konsekvens","Konsekvenstyper","Tiltaksstatus","Strategier","Usikkerhetsstaus","Instillinger",null,null,null,null,"Enkelt skjema",null,"Versjonsnummer"]
[1,5,"Kostnad","M","Unngå","Ny","Vis i skjema",false,"Forside",false,null,false,null,11500]
[2,4,"Fremdrift","V","Overfør","Åpen","Vis i u-liste",false,"Innholdsfortegnelse",false]
[3,3,"Kvalitet","I","Dempe","Lukket","Vis i tiltaksliste",false,"Om prosjektet",false]
[4,2,"Kostnad, fremdrift","F","Akseptere",null,"Vis i fokusliste",false,"Om analysen",false]
[5,1,"Fremdrift, kvalitet","S","Forsterke / fremme",null,"Vis i regnskap",false,null,false]
[null,0,"Kostnad, kvalitet","U","Del",null,"Vis i matrise",false,null,false]
[null,-1,"Kostnad, fremdrift, kvalitet",null,"Utnytt",null,null,null,null,false]
[null,-2,null,null,null,null,null,null,null,false]
[null,-3,null,null,null,null,null,null,null,false]
[null,-4,null,null,null,null,null,null,null,false]
[null,-5]
[]
[]
["Vis lukkede usikkerheter"]

{"sheet":"Hjelp","index":3,"n_rows":22,"n_cols":1,"rows_kept":22,"cut":false,"hidden":false,"merged":[]}
["Om Urxcel "]
["Urxcel er et Excel-basert usikkerhetsregister og verktøy for usikkerhetsstyring.  Verktøyet består av en arbeidsbok med åtte regneark for innlegging og uthenting av data og har i tillegg tre skjulte regneark dere data lagres og oppslag gjøres."]
[]
["Makroer"]
["Det meste av funksjonaliteten i verktøyet kommer fra makroer som kjører i bakgrunnen.  Dette medfører at du må tillate at makroer kjøres, ellers vil ikke verktøyet fungere."]
[]
["Makroene forventer å finne bestemte steder i regnearket, så det er ikke mulig å redigere oppsettet uten å ”ødelegge” verktøyet.  Alle arkene i arbeidsboken er låst med passordbeskyttlese for å forhindre dette.  "]
[]
["Hjelpefunksjon"]
["I tilleg til dette arket ligger det på hvert ark innebygd hjelpefunksjonalitet i form av cellekommentarer. Hvis man fører musen over de cellene som har et rødt triangel i hjørnet så få man opp en kommentarboks med forklaring. Alle arkene har et kommentarfelt som heter \"Hjelp\" oppe i høyre hjørne av arket. Det forklarer den overodnede bruken av arket."]
[]
["Overordnet struktur og navigasjon"]
["Verkøyet har ni visninger/ark som man går bytter mellom på vanlig Excel-vis ved ved å trykke på arkfanene nederst i bildet."]
[]
["Voksende knapper"]
["Hvis man endrer skjermoppløsning etter at arket er åpnet, for eksempel hvis man kobler på prosjektor, så kan man oppleve at knapper og avkrysningsbokser begynner å vokse. Dette er en bug i selve Excel og er ikke noe å gjøre noe med. Hvis dette skjer er så er den eneste måten å fikse det å importere datane til en tom Urxcel arbeidsbok vis importfunksjonen i \"Usikkerhetsliste\" arket.   "]
[]
[]
["Versjon: 1.18"]
[]
["Utviklet av Frode Drevland "]
["frode.drevland@ntnu.no"]

{"sheet":"Info","index":4,"n_rows":22,"n_cols":5,"rows_kept":22,"cut":false,"hidden":false,"merged":[[20,1,20,3],[1,2,1,3],[2,2,2,3],[3,2,3,3],[4,2,4,3],[5,2,5,3],[10,1,10,3],[6,2,6,3],[7,2,7,3],[9,1,9,3],[12,1,12,3],[13,1,13,3],[17,1,17,3],[18,1,18,3],[15,1,15,3],[16,1,16,3]]}
[null,null,null,null,"Hjelp"]
[null,"Prosjektnavn:"]
[null,"Region:"]
[null,"Rapporttype:"]
[null,"Rapportutgiver:"]
[null,"Rapportsted:"]
[null,"Rapportdato:"]
[null,"Rapportstatus:"]
[]
[null,"Beskrivelse av prosjektet"]
[]
[]
[null,"Kart over eller bilde av prosjektet"]
[]
[]
[null,"Gjennomføring av analysen"]
[]
[]
[]
[]
[null,"Deltakere"]
[null,"Navn","Rolle","Epost"]

{"sheet":"Skjema","index":5,"n_rows":29,"n_cols":21,"rows_kept":29,"cut":false,"hidden":false,"merged":[[27,1,27,4],[27,6,27,8],[27,9,27,11],[27,12,27,13],[27,15,27,16],[27,17,27,18],[27,19,27,21],[28,1,28,14],[29,1,29,14],[28,15,28,16],[28,17,28,18],[28,19,28,21],[29,15,29,21],[11,12,12,12],[11,18,12,18],[11,16,12,16],[0,22,25,26],[0,0,0,19],[17,13,18,13],[19,13,20,13],[1,2,1,8],[11,13,12,13],[11,14,12,14],[11,15,12,15],[13,12,14,12],[12,1,12,9],[9,12,10,12],[9,13,10,13],[1,14,1,21],[19,12,20,12],[15,16,16,16],[9,17,10,17],[17,12,18,12],[1,10,1,13],[2,1,2,9],[3,1,5,9],[2,10,2,13],[6,1,8,9],[8,13,8,16],[2,20,2,21],[2,18,2,19],[2,14,2,17],[9,1,9,9],[10,1,10,2],[4,14,5,15],[4,16,5,17],[6,14,6,15],[9,18,10,18],[6,16,6,17],[8,17,8,20],[9,15,10,15],[9,14,10,14],[6,18,6,19],[9,19,10,19],[9,16,10,16],[4,11,5,13],[4,18,5,19],[11,17,12,17],[13,14,14,14],[15,15,16,15],[17,16,18,16],[17,15,18,15],[15,14,16,14],[13,15,14,15],[19,15,20,15],[3,13,3,20],[11,20,12,20],[11,19,12,19],[9,20,10,20],[11,1,11,9],[13,1,13,9],[24,1,24,21],[13,13,14,13],[18,1,18,9],[19,14,20,14],[17,14,18,14],[23,3,23,4],[19,20,20,20],[15,18,16,18],[15,19,16,19],[19,17,20,17],[15,17,16,17],[13,20,14,20],[19,16,20,16],[17,18,18,18],[19,19,20,19],[13,19,14,19],[15,20,16,20],[13,18,14,18],[17,19,18,19],[23,19,23,21],[17,17,18,17],[9,11,20,11],[26,6,26,8],[26,9,26,11],[26,15,26,16],[26,1,26,4],[26,17,26,18],[26,19,26,21],[23,1,23,2],[14,1,14,9],[23,8,23,12],[15,12,16,12],[25,15,25,21],[23,5,23,6],[19,1,21,9],[17,20,18,20],[13,16,14,16],[15,13,16,13],[26,12,26,13],[25,1,25,14],[23,13,23,15],[23,16,23,18],[13,17,14,17],[21,13,21,20],[19,18,20,18],[15,1,17,9]]}
[null,null,null,null,null,null,null,null,null,null,null,null,null,null,null,null,null,null,null,null,"Hjelp"]
[1,"1","Ny",null,null,null,null,null,null,null,"Tilhører:"]
[29,"Beskrivelse av usikkerheten",null,null,null,null,null,null,null,null,"Ansvarlig:",null,null,null,null,null,null,null,"Status:","Stauys"]
[null,null,null,null,null,null,null,null,null,null,null,null,null,"Tidskritikalitet"]
[null,null,null,null,null,null,null,null,null,null,null,"Usikkerheten må håndteres innen"]
[]
[null,"Konsekvens av å ikke gjøre noe med usikkerheten",null,null,null,null,null,null,null,null,null,null,null,null,"0-2 mnd",null,"2-6 mnd",null,"mer enn 6 mnd"]
[]
[null,null,null,null,null,null,null,null,null,null,null,null,null,"Risiko",null,null,null,"Mulighet"]
[null,null,null,null,null,null,null,null,null,null,null,"Sannsynlighet",null,{"$f":"Matrise!C4&\"\n\"&Matrise!C5","v":"Høykritisk\n>100"},{"$f":"Matrise!D4&\"\n\"&Matrise!D5","v":"Kritisk\n50-100"},{"$f":"Matrise!E4&\"\n\"&Matrise!E5","v":"Alvorlig\n15-50"},{"$f":"Matrise!F4&\"\n\"&Matrise!F5","v":"Liten\n<15"},{"$f":"Matrise!G4&\"\n\"&Matrise!G5","v":"Liten\n>1"},{"$f":"Matrise!H4&\"\n\"&Matrise!H5","v":"Middels\n1-5"},{"$f":"Matrise!I4&\"\n\"&Matrise!I5","v":"Stor\n5-10"},{"$f":"Matrise!J4&\"\n\"&Matrise!J5","v":"Veldig stor\n>10"}]
[true,"Usikkerhetskostnad = ",null,0,"MNOK","x",0,{"$f":"G11*D11*1000","v":0},"tusen kroner"]
[true,"Strategi for behandling",null,null,null,null,null,null,null,null,null,null,"50-100%"]
[null,"Om en velger Aksepterer, så vurderes ikke tiltak"]
[null,"Håndtere",null,null,null,null,null,null,null,null,null,null,"25- 50%"]
[null,"Drivere/årsaker til at usikkerheten har oppstått"]
[null,null,null,null,null,null,null,null,null,null,null,null,"5-25%"]
[]
[null,null,null,null,null,null,null,null,null,null,null,null,"1-5%"]
[null,"Mål med tiltak"]
[null,null,null,null,null,null,null,null,null,null,null,null,"0-1%"]
[]
[null,null,null,null,null,null,null,null,null,null,null,null,null,"Konsekvenser angitt i millioner kroner"]
[]
[null,"Usikkerhetskostnad:",null,0,null,"Tiltaksgrense:",null,0,"Forventet effekt av tiltak:",null,null,null,null,{"$f":"R29","v":0},null,null,"Restusikkerhet:",null,null,{"$f":"D24-N24","v":0}]
[null,"Alle tall i  hele tusen kr"]
[null,"Tiltak",null,null,null,null,null,null,null,null,null,null,null,null,null,"Kostnader"]
[5,"Beskrivelse",null,null,null,"Status","Merknader / utløsende betingelser",null,null,"Mulig \noppstart",null,null,"Frist",null,"Ans","Kostnad\n(a)",null,"Effekt\n(b)",null,"Netto besparelse\nc=a-b"]
[]
[null,"SUM",null,null,null,null,null,null,null,null,null,null,null,null,null,{"$f":"SUMIF(F28:F28,\"v\",(P28:Q28))+SUMIF(F28:F28,\"i\",(P28:Q28))","v":0},null,{"$f":"SUMIF(F28:F28,\"v\",(R28:S28))+SUMIF(F28:G28,\"i\",(R28:S28))","v":0},null,{"$f":"P29-R29","v":0}]

{"sheet":"Usikkerhetsliste","index":6,"n_rows":4,"n_cols":12,"rows_kept":4,"cut":false,"hidden":false,"merged":[[0,0,0,7]]}
[null,null,null,null,null,null,null,null,null,null,"Hjelp"]
[null,"Tid",null,"Ris",null,"Mul",null,"Id","Usikkerhet","Tilhører","Ansvarlig"]
[]
[1,null,null,null,null,null,null,1,"Ny",null,null,"X"]

{"sheet":"Tiltaksliste","index":7,"n_rows":8,"n_cols":9,"rows_kept":8,"cut":false,"hidden":false,"merged":[[1,4,1,6],[0,0,0,7],[1,0,1,2],[5,0,6,0],[5,1,6,1]]}
["Hjelp"]
["Tiltaksliste"]
["Nr","Usikkerhet","Tiltak","St*","Merknader / utløsende forfold","Frist","Ansv."]
["1","Ny",null,null,null,null,null,null,1]
["2","Usikkerhet med et veldig langt og kronglete navn",null,null,null,null,null,null,2]
["3","Ny",null,null,null,null,null,null,3]
[]
["* Status = M(ulig), V(edtatt), I(gangsatt), F(erdig), S(toppet), U(tgått)"]

{"sheet":"Fokusliste","index":8,"n_rows":3,"n_cols":10,"rows_kept":3,"cut":false,"hidden":false,"merged":[[0,9,0,10],[1,7,1,9],[1,1,1,6]]}
[null,null,null,null,null,null,null,null,null,"Hjelp"]
[null,"Fokusliste",null,null,null,null,null,{"$f":"TODAY()","v":"2021-08-20"}]
[null,"T","R","M","Usikkerhet","Konsekvens","Tiltak","Merknader/utløsende forhold","Frist","Ansv"]

{"sheet":"Matrise","index":9,"n_rows":10,"n_cols":10,"rows_kept":10,"cut":false,"hidden":false,"merged":[[1,2,1,9],[2,2,2,5],[2,6,2,9],[5,0,5,1],[8,0,8,1],[9,0,9,1],[3,0,4,1],[1,0,2,1],[6,0,6,1],[7,0,7,1]]}
[16]
["Usikkerhets- \nmatrise",null,"Konsekvens"]
[null,null,"Risiko    ",null,null,null,"Mulighet              "]
["Sann- synlighet",null,"Høykritisk","Kritisk","Alvorlig","Liten","Liten","Middels","Stor","Veldig stor"]
[null,null,">100","50-100","15-50","<15",">1","1-5","5-10",">10"]
["Veldig stor\n50-100%",null,"","","","","","","",""]
["Stor\n25-50%",null,"","","","","","","",""]
["Middels\n5-25%",null,"","","","","","","",""]
["Liten\n1-5%",null,"","","","","","","",""]
["Nærmest utenkelig\n0-1%",null,"","","","","","","",""]

{"sheet":"Usikkerhetsregnskap","index":10,"n_rows":8,"n_cols":7,"rows_kept":8,"cut":false,"hidden":false,"merged":[[7,1,7,2],[3,1,3,6],[0,0,0,7],[1,5,1,6],[1,1,1,4],[5,1,5,2]]}
["Hjelp"]
[null,"Usikkerhetsregnskap",null,null,null,{"$f":"TODAY()","v":"2021-08-20"}]
[null,"Nr","Usikkerhet","Usikkerhets-kostnad\n(a)","Kostnad av planlagte tiltak\n(b)","Forventet effekt av tiltak\n(c )","Restusikkerhet \n(a-c)"]
[null,""]
[1,"1","Ny",0,0,0,0]
[null,"Sum",null,{"$f":"SUM(D5:D5)","v":0},{"$f":"SUM(E5:E5)","v":0},{"$f":"SUM(F5:F5)","v":0},{"$f":"SUM(G5:G5)","v":0}]
[]
[null,"Totalt for prosjektet",null,{"$f":"+D6","v":0},{"$f":"+E6","v":0},{"$f":"+F6","v":0},{"$f":"+G6","v":0}]

{"sheet":"Rapport","index":11,"n_rows":13,"n_cols":2,"rows_kept":13,"cut":false,"hidden":false,"merged":[]}
[null,"Hjelp"]
[]
[]
[{"$f":"IF(ISBLANK(Info!C3),\"\",\"Region \"&Info!C3)","v":""}]
[{"$f":"Info!C2","v":0}]
[{"$f":"Info!C4","v":0}]
[]
[]
[]
[{"$f":"Info!C5","v":0}]
[{"$f":"Info!C6","v":0}]
[{"$f":"Info!C7","v":"00:00:00"}]
[{"$f":"Info!C8","v":0}]